Cogmind - Beta 14 @@@ ROGUE MODE // 2024.12.23 @ 14:52:36 Player: Valkyorl Result: Destroyed by C-17 Slicer with Blade Saw Performance ------------- Evolutions (2) 1000 Regions Visited (5) 1000 Robots Destroyed (26) 130 Value Destroyed (775) 775 Prototype IDs (26) 520 Alien Tech Used (0) 0 Bonus (312) 312 TOTAL SCORE: 3737 Bonus ------- High Alert Combat Kills 12 Aligned with FarCom 300 Cogmind --------- Core Integrity 0/550 Matter 34/300 Energy 100/100 System Corruption 0% Temperature Cool (0) Movement Core (50) Location -8/Materials Parts ------- > --- POWER (1) -------- (None) > --- PROPULSION (4) --- (None) > --- UTILITY (4) ------ (None) > --- WEAPON (2) ------- (None) > --- INVENTORY (5) ---- Transmission Jammer Peak State ------------ > --- POWER ------------ Light Deuterium Engine > --- PROPULSION ------- Flying Fortress v7 > --- UTILITY ---------- High-capacity Storage Unit Terrain Scanner Transmission Jammer > --- WEAPON ----------- Greatsword > --- INVENTORY -------- Light Treads Advanced Treads Flight Unit High-capacity Storage Unit Huge Storage Unit Compact Matter Pod Advanced Weight Redist. System Experimental Sensor Array Transmission Jammer Improved Light Armor Plating Grenade Launcher Grenade Launcher Rocket Launcher Heavy Rocket Launcher Heavy Rocket Launcher Heavy Rocket Launcher Mining Claw [Rating: 53] Favorites ----------- Power Light Ion Engine Engine Light Ion Engine Propulsion Light Treads Treads Light Treads Wheel Wheel Flight Unit Flying Fortress v7 Utility Signal Interpreter Device Terrain Scanner Storage Huge Storage Unit Processor Signal Interpreter Protection Improved Light Armor Plating Weapon Light Assault Rifle Ballistic Gun Light Assault Rifle Launcher Grenade Launcher Slashing Weapon Greatsword Build | -11 -10 -10 -10 -9 -8 ------- Run | Yrd Mat Min Exi Min Mat Slots Evolved 4 | . . . . . 4 Power . | . . . . . . Propulsion 2 | . . . . . 2 Utility 2 | . . . . . 2 Weapon . | . . . . . . Parts Attached 51 | 7 2 2 . 11 29 Power 5 | 1 . 1 . 1 2 Engine 5 | 1 . 1 . 1 2 Core . | . . . . . . Reactor . | . . . . . . Propulsion 14 | 2 . . . 6 6 Treads 6 | 2 . . . 1 3 Leg . | . . . . . . Wheel 5 | . . . . 5 . Hover . | . . . . . . Flight 3 | . . . . . 3 Utility 16 | 1 2 1 . 1 11 Device 6 | . . . . . 6 Storage 7 | 1 1 1 . 1 3 Processor 1 | . 1 . . . . Hackware . | . . . . . . Protection 2 | . . . . . 2 Artifact . | . . . . . . Weapon 16 | 3 . . . 3 10 Energy Gun . | . . . . . . Energy Cannon . | . . . . . . Ballistic Gun 5 | 3 . . . 2 . Ballistic Cannon . | . . . . . . Launcher 5 | . . . . 1 4 Special Weapon . | . . . . . . Impact Weapon . | . . . . . . Slashing Weapon 6 | . . . . . 6 Piercing Weapon . | . . . . . . Special Melee Weapon . | . . . . . . Unidentified Prototypes 1 | . . . . . 1 Parts Lost 14 | . . . . 10 4 Power 1 | . . . . 1 . Propulsion 6 | . . . . 5 1 Utility 3 | . . . . 1 2 Weapon 4 | . . . . 3 1 Highest Loss Streak 4 | . . . . 4 2 To Critical Strikes . | . . . . . . Average Slot Usage (%) 91 | . 90 100 100 88 42 Engine 12 | . 14 14 14 13 3 Treads 24 | . 28 28 28 16 4 Wheel 1 | . . . . 8 . Device 1 | . . . . . 12 Storage 13 | . 14 14 14 14 7 Processor 11 | . 4 14 14 11 . Ballistic Gun 24 | . 28 28 28 20 . Peak Build Rating 53 | 6 8 8 11 12 53 Average Rating 10 | 4 6 7 8 11 35 On Entrance 7 | . 6 8 8 11 11 Naked Turns 24 | . . . . . 24 Heaviest Build 86 | 13 28 86 86 86 86 Greatest Support 62 | 40 40 40 40 40 62 Greatest Overweight (x) 4 | . . 2 2 4 1 Average Overweight (x) 1 | . . 1 2 1 . Largest Inventory Capacity 25 | 8 15 25 25 25 25 Average Capacity 21 | 6 12 21 25 22 17 Most Carried 20 | 5 13 13 18 20 20 Average Carried 12 | 3 9 11 12 18 13 Final Capacity 25 | 8 15 25 25 20 5 Final Carried 19 | 4 10 12 18 19 1 Class Distribution -------------------- 94% | Mutant 5% | Scout Dominant Class ---------------- Mutant | -10/Materials Mutant | -10/Mines Mutant | -10/Exiles Mutant | -9/Mines Scout | -8/Materials Resources | -11 -10 -10 -10 -9 -8 ----------- Run | Yrd Mat Min Exi Min Mat Matter Collected 961 | 245 126 185 . 186 219 Remotely . | . . . . . . Salvage Created 686 | . 106 130 . 55 395 Parts 38 | . 5 8 . . 25 Haulers Intercepted . | . . . . . . Recyclers Shooed . | . . . . . . Parts Field Recycled . | . . . . . . Retrieved Matter . | . . . . . . Parts Self-Destructed . | . . . . . . Prevented . | . . . . . . Kills | -11 -10 -10 -10 -9 -8 ------- Run | Yrd Mat Min Exi Min Mat Combat Hostiles Destroyed 26 | . 2 4 . 6 14 Melee 4 | . . . . . 4 Guns 10 | . 2 4 . 4 . AOE 12 | . . . . 2 10 Classes Destroyed 11 | . 2 1 . 1 7 Worker 2 | . . . . . 2 Builder 1 | . . . . . 1 Mechanic 1 | . . . . . 1 Operator 1 | . . . . . 1 Watcher 1 | . 1 . . . . Swarmer 2 | . . 2 . . . Cutter 4 | . . . . . 4 Grunt 11 | . 2 2 . . 7 Brawler 1 | . . . . . 1 Sentry 2 | . . . . . 2 Assembled 6 | . . . . 6 . Best Kill Streak 10 | . 3 2 . 2 10 Combat Bots Only 7 | . 2 2 . 2 7 Max Kills in Single Turn 2 | . 1 1 . 1 2 Gunslinging . | . . . . . . Exploded 2 | . . . . 1 2 Melee 1 | . . . . . 1 Uniques/NPCs Destroyed . | . . . . . . Combat | -11 -10 -10 -10 -9 -8 -------- Run | Yrd Mat Min Exi Min Mat Hostile Shots Fired 205 | . 27 29 . 25 124 Missed 56 | . 10 4 . 4 38 Damage Taken 2860 | . 223 273 . 533 1831 Core 778 | . 26 71 . 130 551 Absorbed by Shields . | . . . . . . Core Remaining (%) 54 | 100 . . . 9 . Volleys Fired 85 | . 18 16 . 29 22 Largest 2 | . 2 2 . 2 1 Hottest 40 | . 40 40 . 40 39 Shots Fired 129 | . 36 32 . 39 22 Gun 100 | . 36 32 . 32 . Cannon . | . . . . . . Launcher 29 | . . . . 7 22 Special . | . . . . . . Kinetic 100 | . 36 32 . 32 . Thermal . | . . . . . . Explosive 29 | . . . . 7 22 Electromagnetic . | . . . . . . Robot Hit Streak 6 | . 4 5 . 6 5 Robot Miss Streak 3 | . 3 2 . 3 1 Penetration Max . | . . . . . . Secondary Targets 1 | . . 1 . . . Max Gunslinging Chain 1 | . . 1 . . . Shots Hit Robots 95 | . 23 21 . 24 27 Core Hits 65 | . 8 10 . 15 32 Critical Kills . | . . . . . . Critical Parts Destroyed 1 | . 1 . . . . Critical Strikes 2 | . 1 . . . 1 Destroy 1 | . 1 . . . . Sever 1 | . . . . . 1 Melee Attacks 24 | . . . . . 24 Impact . | . . . . . . Slashing 24 | . . . . . 24 Piercing . | . . . . . . Sneak Attacks 1 | . . . . . 1 Combat Hostiles . | . . . . . . Follow-up Attacks . | . . . . . . Damage Inflicted 2791 | . 265 214 . 424 1888 Guns 651 | . 265 214 . 172 . Cannons . | . . . . . . Explosions 1592 | . . . . 252 1340 Melee 548 | . . . . . 548 Ramming . | . . . . . . Kinetic 651 | . 265 214 . 172 . Thermal . | . . . . . . Explosive 1592 | . . . . 252 1340 Electromagnetic . | . . . . . . Impact . | . . . . . . Slashing 548 | . . . . . 548 Piercing . | . . . . . . Highest Corruption 10 | . . . . 10 . Average Corruption 9 | . . . . 9 . Corruption Purged . | . . . . . . Corruption Blocked . | . . . . . . Effects 7 | . . . . 7 . Message Errors 3 | . . . . 3 . Heat Flow Errors 1 | . . . . 1 . Energy Discharges 1 | . . . . 1 . Alerts 1 | . . . . 1 . Weapon Failures 1 | . . . . 1 . Overload Shots . | . . . . . . Overflow Damage 57 | . . . . 44 13 Projectiles . | . . . . . . Explosions 44 | . . . . 44 . Melee 13 | . . . . . 13 Knockbacks . | . . . . . . Impact . | . . . . . . Kinetic . | . . . . . . Secondary . | . . . . . . Self-Inflicted Damage 203 | . . . . 93 110 Shots 5 | . . . . 3 2 Rammed . | . . . . . . Targets Rammed . | . . . . . . Kicked . | . . . . . . Crushed . | . . . . . . Highest Temperature 196 | . 41 19 . 196 31 Average Temperature 22 | . 17 6 . 76 10 Received Heat Transfer 696 | . 147 96 . 120 333 Siege Activations . | . . . . . . Robots Corrupted . | . . . . . . Combat Hostiles . | . . . . . . Parts Fried . | . . . . . . Impact Corruptions . | . . . . . . Robots Melted . | . . . . . . Combat Hostiles . | . . . . . . Parts Melted . | . . . . . . Heat Transferred . | . . . . . . Parts Sabotaged . | . . . . . . Parts Stolen . | . . . . . . Parts Stripped . | . . . . . . Power Chain Reactions . | . . . . . . Alert | -11 -10 -10 -10 -9 -8 ------- Run | Yrd Mat Min Exi Min Mat Peak Influence 550 | . 62 100 . 31 550 Initial 6 | . . . . . 6 Average 58 | . 13 25 . 4 294 Maximum Alert Level 2 | . . . . . 2 Low Security (%) 88 | 100 100 100 . 100 27 Level 1 6 | . . . . . 43 Level 2 4 | . . . . . 29 Level 3 . | . . . . . . Level 4 . | . . . . . . Level 5 . | . . . . . . High Security . | . . . . . . Max Security . | . . . . . . Squads Dispatched 4 | . . . . . 4 Investigation . | . . . . . . Extermination . | . . . . . . Reinforcement 4 | . . . . . 4 Assault . | . . . . . . Garrison . | . . . . . . Intercept . | . . . . . . Searches Triggered . | . . . . . . Construction Impeded . | . . . . . . Haulers Reinforced . | . . . . . . Active Scanning Responses . | . . . . . . Cargo Convoy Interrupts . | . . . . . . Stealth | -11 -10 -10 -10 -9 -8 --------- Run | Yrd Mat Min Exi Min Mat Distress Signals 5 | . . . . . 5 Communications Jammed 3 | . . . . . 3 Distress Signals 3 | . . . . . 3 Times Spotted 62 | . 8 5 . 8 41 Peak Tracking Total 19 | . 4 3 . 12 19 Tactical Retreats 5 | . . . . 2 3 Traps | -11 -10 -10 -10 -9 -8 ------- Run | Yrd Mat Min Exi Min Mat Traps Triggered . | . . . . . . Indirectly . | . . . . . . Trap Hack Attempts . | . . . . . . Triggered . | . . . . . . Disarmed . | . . . . . . Reprogrammed . | . . . . . . Reused . | . . . . . . Traps Extracted . | . . . . . . Installed . | . . . . . . Triggered . | . . . . . . Machines | -11 -10 -10 -10 -9 -8 ---------- Run | Yrd Mat Min Exi Min Mat Machines Disabled 1 | . . . . 1 . Max in Single Turn 1 | . . . . 1 . Machines Repaired . | . . . . . . Machines Dismantled . | . . . . . . Machines Sabotaged . | . . . . . . Overloaded Fab Kills . | . . . . . . Hacking | -11 -10 -10 -10 -9 -8 --------- Run | Yrd Mat Min Exi Min Mat Machines Accessed 7 | . 1 . 5 . 1 Terminals 1 | . 1 . . . . Fabricators . | . . . . . . Repair Stations . | . . . . . . Recycling Units . | . . . . . . Scanalyzers . | . . . . . . Garrison Access 1 | . . . . . 1 Total Hacks 54 | . 2 . 50 . 2 Successful 52 | . 2 . 50 . . Failed 2 | . . . . . 2 Catastrophic 2 | . . . . . 2 Database Lockouts . | . . . . . . Manual 4 | . . . 4 . . Terminals 2 | . 2 . . . . Fabricators . | . . . . . . Repair Stations . | . . . . . . Recycling Units . | . . . . . . Scanalyzers . | . . . . . . Garrison Access 2 | . . . . . 2 Terminal Hacks 52 | . 2 . 50 . . Record 49 | . . . 49 . . Prototype ID Bank 1 | . 1 . . . . Hauler Manifests 1 | . 1 . . . . Derelict Proto ID Bank 1 | . . . 1 . . Fabricator Hacks . | . . . . . . Repair Station Hacks . | . . . . . . Recycling Unit Hacks . | . . . . . . Scanalyzer . | . . . . . . Garrison Access Hacks . | . . . . . . Unauthorized Hacks . | . . . . . . Terminals . | . . . . . . Fabricators . | . . . . . . Repair Stations . | . . . . . . Recycling Units . | . . . . . . Scanalyzers . | . . . . . . Garrison Access . | . . . . . . Data Cores Recovered 1 | . . . . . 1 Used . | . . . . . . Hacking Detections 2 | . 1 . . . 1 Full Trace Events 1 | . . . . . 1 Feedback Events . | . . . . . . Feedback Blocked . | . . . . . . Robot Schematics Acquired . | . . . . . . Robots Built . | . . . . . . Authchips . | . . . . . . Time . | . . . . . . Total Robot Build Rating . | . . . . . . Part Schematics Acquired . | . . . . . . Parts Built . | . . . . . . Authchips . | . . . . . . Time . | . . . . . . Total Part Build Rating . | . . . . . . Parts Repaired . | . . . . . . Time . | . . . . . . Parts Recycled . | . . . . . . Recycled Matter . | . . . . . . Retrieved Matter . | . . . . . . Retrieved Components . | . . . . . . Parts Scanalyzed . | . . . . . . Part Schematics Acquired . | . . . . . . Parts Damaged . | . . . . . . Bothacking | -11 -10 -10 -10 -9 -8 ------------ Run | Yrd Mat Min Exi Min Mat Used RIF Installer . | . . . . . . Robots Hacked . | . . . . . . Non-combat . | . . . . . . Combat . | . . . . . . Robot Hacks Applied . | . . . . . . Relay Couplers Released . | . . . . . . Fabnet Peak Effective % . | . . . . . . Robots Rewired . | . . . . . . Allies Hacked . | . . . . . . Hacks Repelled . | . . . . . . Allies | -11 -10 -10 -10 -9 -8 -------- Run | Yrd Mat Min Exi Min Mat Total Allies . | . . . . . . Largest Group . | . . . . . . Highest-Rated Group . | . . . . . . Highest-Rated Ally . | . . . . . . Total Orders . | . . . . . . Ally Attacks . | . . . . . . Total Damage . | . . . . . . Kills . | . . . . . . Allies Corrupted . | . . . . . . Allies Melted . | . . . . . . Intel | -11 -10 -10 -10 -9 -8 ------- Run | Yrd Mat Min Exi Min Mat Robot Analysis Total . | . . . . . . Derelict Logs Recovered 4 | . . 3 . 1 . Drone Launches . | . . . . . . Drone Recoveries . | . . . . . . Exploration | -11 -10 -10 -10 -9 -8 ------------- Run | Yrd Mat Min Exi Min Mat Turns Passed 4958 | 83 516 1019 2135 765 440 Spaces Moved 2062 | 48 282 391 667 324 350 Core 22 | 8 . . . . 14 Treads 1564 | 40 282 391 667 148 36 Legs . | . . . . . . Wheels 176 | . . . . 176 . Hover . | . . . . . . Flight 300 | . . . . . 300 Fastest Speed 50 | 50 160 160 320 110 50 Average Speed 219 | 141 160 247 320 208 62 Slowest Speed 320 | 160 160 320 320 320 232 Overloaded Moves . | . . . . . . Propulsion Burnouts . | . . . . . . Robots Hopped 2 | . . . . . 2 Cave-ins Triggered . | . . . . . . Exploration Rate (%) 54 | 4 40 86 94 69 32 Regions Visited 5 Branch Regions 3 Pre-discovered Areas 4 | . . 2 1 1 . Known Exits Taken 3 | . 1 1 1 . . Unknown Exits Taken 2 | 1 . . . 1 . Scrap Searched 2 | . . 1 . 1 . Spaces Dug 1 | . . . . . 1 Terrain Destroyed 141 | . . . . 24 117 Melee 1 | . . . . . 1 Projectile . | . . . . . . AOE 140 | . . . . 24 116 Terrain Rammed . | . . . . . . Walls Destroyed . | . . . . . . Machines Disabled . | . . . . . . Actions | -11 -10 -10 -10 -9 -8 --------- Run | Yrd Mat Min Exi Min Mat Total 2355 | 61 316 414 669 380 515 Wait 46 | . . . . 2 44 Move 2053 | 47 281 390 666 323 346 Hop 2 | . . . . . 2 Pick Up 53 | 7 11 4 3 12 16 Fast Attach 4 | 3 . . . . 1 Attach 39 | 3 1 1 . 10 24 Detach 13 | . . . . 1 12 Swap 8 | 1 1 1 . 1 4 Drop 28 | . 4 2 . 2 20 Fire 85 | . 18 16 . 29 22 Melee 24 | . . . . . 24 Ram . | . . . . . . Kick . | . . . . . . Crush . | . . . . . . Escape Stasis . | . . . . . . Rewire . | . . . . . . Trap . | . . . . . . Miscellaneous . | . . . . . . Route ------- -11/Scrapyard -10/Materials (discovered 2 exits: *Min x2) -10/Mines (discovered 3 exits: *Mat x2 / *Exi) -10/Exiles (discovered 2 exits: *Min x2) -9/Mines -8/Materials History --------- Turn | Location | Event 17 | -11/Scrapyard | Discovered new exit (range 16) 84 | -11/Scrapyard | Entered Materials 194 | -10/Materials | Discovered new exit (range 15) 313 | -10/Materials | Build established: Mutant 485 | -10/Materials | Identified exit to Mines 554 | -10/Materials | Discovered exit to Mines (range 9) 600 | -10/Materials | Entered Mines 645 | -10/Mines | Discovered new exit (range 8) 654 | -10/Mines | Identified exit to Materials 813 | -10/Mines | Identified exit to Exiles 861 | -10/Mines | Received a Rocket Launcher from a helpful Derelict 902 | -10/Mines | Discovered exit to Materials (range 5) 911 | -10/Mines | Learned location of Zion (-6) 1603 | -10/Mines | Deemed a non-threat by the Exiles lab entrance 1619 | -10/Mines | Entered Exiles 1671 | -10/Exiles | Discovered new exit (range 15) 1712 | -10/Exiles | Identified exit to Mines 1795 | -10/Exiles | Met 8R-AWN 1840 | -10/Exiles | Met EX-HEX 2051 | -10/Exiles | Met EX-DEC 2123 | -10/Exiles | Visited The Gauntlet 2643 | -10/Exiles | Met EX-BIN 2973 | -10/Exiles | Aligned with FarCom system 2976 | -10/Exiles | Given EX-Vault access code 3376 | -10/Exiles | Opened EX-Vault 3392 | -10/Exiles | Found Flying Fortress v7 3457 | -10/Exiles | Warned to stay clear of 0b10 Research branches 3715 | -10/Exiles | Discovered exit to Mines (range 14) 3754 | -10/Exiles | Left Exiles lab with Flying Fortress v7 3754 | -10/Exiles | Entered Mines 3762 | -9/Mines | YI-UF0 nonchalantly dropped a Grenade Launcher on the ground 3867 | -9/Mines | Found a damaged Exp. Sensor Array with a note attached 3874 | -9/Mines | Found Prototype Device 4023 | -9/Mines | Assembled infested the area 4172 | -9/Mines | Core integrity fell below 50% 4194 | -9/Mines | Lost 4 parts (2n2w) 4362 | -9/Mines | System corruption reached 10% 4392 | -9/Mines | Lost 4 parts (1p2n1u) 4474 | -9/Mines | Core integrity fell below 20% 4514 | -9/Mines | Discovered new exit (range 6) 4519 | -9/Mines | Entered Materials 4519 | -8/Materials | Evolved 4 slots: Propulsion x2, Utility x2 4670 | -8/Materials | Destroyed 7 combat bots 4901 | -8/Materials | Identified Exp. Sensor Array 4935 | -8/Materials | Core integrity fell below 50% 4950 | -8/Materials | Core integrity fell below 20% 4959 | -8/Materials | Destroyed by C-17 Slicer with Blade Saw Last Messages --------------- W-25 Informer sends out distress signal. ALERT: Suspicious intruders detected, dispatching Cutter reinforcements to area. Sneak attack on K-01 Serf. K-01 Serf destroyed. Knocked back. C-17 Slicer Surge Thruster severed. C-17 Slicer destroyed. Acquired 21 matter. Scythe severed. Identified Exp. Sensor Array. Acquired Scythe. Scythe severed. W-25 Informer sends out distress signal. Flying Fortress v7 destroyed. Acquired Scythe. Transmission Jammer severed. Scythe severed. Exp. Sensor Array severed. Acquired Transmission Jammer. Map ----- +----------------------------------------------------+ | ????#???????? # ####?????# #????????? | | ??????#?????? = ## ?????# #????????? | | ?????????????? # "?????# ] #????????? | | ?????????????? # ???????# ! #????????? | | ???????????????? ???????? # !! #????????? | | ????????????????? ??????? # ]/!! #????????? | | ???????????????? ???????"" #=!!=] #????????? | | ???????????????? ???????"" #######+###????????? | | ??????????????????? ???????"" #?????# #??????????? | | ???????????????????w??????? ##??###+##?????????? | | ?????????????????# ??????? #??# //#?????????? | | ?????????????????# ?????? [###?# ///#?????????? | | ?????????????????# #####+ ### // #?????????? | | ??????????? ## =+% #?????????? | | ?????????? ! / w H ####* #?????????? | | ???????????? ## ####??# #?????????? | | ?????????????????## ##" ##+######## #?????????? | | ?????????????????????#"T#* h ## #?????????? | | ?????????????????????##?#g""" ! !## #?????????? | | ????????????????????????# """ ####/##?????????? | | ????????????????????????#g"""Y # ? ??????????? | | ????????????????????????#g gg g + ????????? | | ????????????????????????#g""" # ?????????? | | ????????????????????????#g""" g #?##+###????????? | | ????????????????????????#c""" ! #???????????????? | | ????????????????????????#@cYg #???????????????? | | ????????????????????????##########???????????????? | | ?????????????????????????????????????????????????? | | ?????????????????????????????????????????????????? | | ?????????????????????????????????????????????????? | | ?????????????????????????????????????????????????? | | ?????????????????????????????????????????????????? | | ?????????????????????????????????????????????????? | | ?????????????????????????????????????????????????? | | ?????????????????????????????????????????????????? | | ?????????????????????????????????????????????????? | | ?????????????????????????????????????????????????? | | ?????????????????????????????????????????????????? | | ?????????????????????????????????????????????????? | | ?????????????????????????????????????????????????? | | ?????????????????????????????????????????????????? | | ?????????????????????????????????????????????????? | | ?????????????????????????????????????????????????? | | ?????????????????????????????????????????????????? | | ?????????????????????????????????????????????????? | | ?????????????????????????????????????????????????? | | ?????????????????????????????????????????????????? | | ?????????????????????????????????????????????????? | | ?????????????????????????????????????????????????? | | ?????????????????????????????????????????????????? | +----------------------------------------------------+ Best States ------------- Heat Dissipation 31 Energy Generation 14 Energy Capacity 250 Matter Stores 300 Matter Capacity 300 Sight Range 16 Robot Scan Range 20 Terrain Scan Range 14 Terrain Scan Density 10 Jamming Range 12 Armor Coverage 150 Evasion (%) 60 Recoil Reduction 3 Item Schematics ----------------- None Robot Schematics ------------------ None Fabricated ------------ Nothing Alien Tech Used ----------------- None Achievements -------------- Close Call Slippery One System Compromised Challenges ------------ None Game ------ Seed StasisPitchforkSword Manual? 0 Play Time 01:01:58 Cumulative 7.7 hours Start 2024.12.23 @ 13:05:47 End 2024.12.23 @ 14:52:36 Sessions 1 Manual Loads 0 Difficulty Rogue Special Mode None Game No. 8 Rogue 8 Adventurer 0 Explorer 0 Win Type - Total 0 Types 0/0/0/0/0/0/0/0/0 Lore% 10 Gallery% 10 Achievement% 13 Wizard Run 0 Options --------- Layout 1 ASCII 0 Keyboard 0 Movement Mouse Keybinds 0 Fullscreen 2 Font 32/SmallcapsGlow Map View 50x35 Zoom Use 0% Tactical HUD 0 Map Filters NONE Filters NONE Steam 1 RUN: c17cc9ef-7829-4b8c-b683-4a53c91a722a